[Event "31st MPL National U18G Chess-ch 2022"]
[Site "Pollachi"]
[Date "2022.04.22"]
[Round "10.5"]
[White "Jeevika S"]
[Black "Vakcheri Mohitha"]
[Result "1/2-1/2"]
[ECO "C02"]
[WhiteElo "1239"]
[BlackElo "1459"]
[Annotator "NA RC COMBH"]
[PlyCount "61"]
[EventDate "2022.04.18"]
[EventCountry "IND"]
[SourceTitle "playchess.com"]
[Source "ChessBase"]
[SourceQuality "1"]
[TimeControl "5400+30"]

1. e4 {[%emt 0:00:03]} e6 {[%emt 0:00:04]} 2. d4 {[%emt 0:00:08]} d5 {[%emt 0:00:05]} 3. e5 {[%emt 0:00:05]} c5 {[%emt 0:00:04]} 4. c3 {[%emt 0:00:07]} Nc6 {[%emt 0:00:06]} 5. Nf3 {[%emt 0:00:17]} Qb6 {[%emt 0:00:07]} 6. Be2 {[%emt 0:01:14]} cxd4 {[%emt 0:01:50]} 7. cxd4 {[%emt 0:00:19]} Nge7 {[%emt 0:01:04]} 8. Nc3 {[%emt 0:01:42]} Nf5 {[%emt 0:00:25]} 9. Bb5 {[%emt 0:00:41]} Bd7 {[%emt 0:00:12]} 10. Bxc6 {[%emt 0:00:09]} bxc6 {[%emt 0:00:28]} 11. O-O {[%emt 0:01:18]} c5 {[%emt 0:03:51]} 12. Na4 {[%emt 0:05:12]} Qb4 {[%emt 0:01:00]} 13. Nxc5 {[%emt 0:00:49]} Bxc5 {[%emt 0:00:08]} 14. dxc5 {[%emt 0:00:36]} Qxc5 {[%emt 0:00:06]} 15. Bd2 {[%emt 0:01:05]} O-O {[%emt 0:00:14]} 16. a3 {[%emt 0:02:30]} Rfc8 {[%emt 0:03:08]} 17. Bc3 {[%emt 0:01:12]} a5 {[%emt 0:09:01]} 18. Rc1 {[%emt 0:03:54]} a4 {[%emt 0:00:44]} 19. Nd4 {[%emt 0:04:25]} Nxd4 {[%emt 0:02:42]} 20. Qxd4 {[%emt 0:00:19]} Qxd4 {[%emt 0:00:22]} 21. Bxd4 {[%emt 0:00:13]} Bb5 {[%emt 0:00:04]} 22. Rfe1 {[%emt 0:01:47]} Bc4 {[%emt 0:02:08]} 23. Rcd1 {[%emt 0:07:18]} Kf8 {[%emt 0:02:57]} 24. Bc3 {[%emt 0:02:44]} Ke7 {[%emt 0:00:18]} 25. Bb4+ {[%emt 0:00:44]} Kd7 {[%emt 0:00:10]} 26. Bc3 {[%emt 0:00:15]} Kc6 {[%emt 0:01:49]} 27. Rd4 {[%emt 0:02:33]} h5 {[%emt 0:02:26]} 28. Rh4 {[%emt 0:03:09]} Rh8 {[%emt 0:00:11]} 29. Rf4 {[%emt 0:01:09]} Ra7 {[%emt 0:00:05]} 30. h4 {[%emt 0:01:33]} g6 {[%emt 0:02:08]} 31. Re3 {[%emt 0:01:45]} 1/2-1/2

[Event "31st MPL National U18G Chess-ch 2022"]
[Site "Pollachi"]
[Date "2022.04.22"]
[Round "10.6"]
[White "Keerthana B"]
[Black "Sasvatha A"]
[Result "1-0"]
[ECO "B19"]
[WhiteElo "1311"]
[BlackElo "1756"]
[Annotator "NA RC COMBH"]
[PlyCount "103"]
[EventDate "2022.04.18"]
[EventCountry "IND"]
[SourceTitle "playchess.com"]
[Source "ChessBase"]
[SourceQuality "1"]
[TimeControl "5400+30"]

1. e4 {[%emt 0:00:09]} c6 {[%emt 0:00:06]} 2. d4 {[%emt 0:00:57]} d5 {[%emt 0:00:07]} 3. Nc3 {[%emt 0:00:35]} dxe4 {[%emt 0:00:09]} 4. Nxe4 {[%emt 0:00:06]} Bf5 {[%emt 0:00:05]} 5. Ng3 {[%emt 0:00:26]} Bg6 {[%emt 0:00:07]} 6. Nf3 {[%emt 0:00:27]} Nd7 {[%emt 0:00:18]} 7. h4 {[%emt 0:01:35]} h6 {[%emt 0:00:07]} 8. h5 {[%emt 0:01:34]} Bh7 {[%emt 0:00:10]} 9. Bd3 {[%emt 0:01:39]} Bxd3 {[%emt 0:00:23]} 10. Qxd3 {[%emt 0:00:04]} e6 {[%emt 0:00:09]} 11. Bf4 {[%emt 0:05:12]} Qa5+ {[%emt 0:00:24]} 12. c3 {[%emt 0:02:45]} Ngf6 {[%emt 0:00:09]} 13. Qe2 {[%emt 0:04:12]} Be7 {[%emt 0:03:05]} 14. Ne5 {[%emt 0:02:57]} Nxe5 {[%emt 0:17:04]} 15. dxe5 {[%emt 0:00:52]} Nd5 {[%emt 0:06:36]} 16. Bd2 {[%emt 0:00:34]} Qc7 {[%emt 0:01:43]} 17. O-O {[%emt 0:04:26]} O-O-O {[%emt 0:07:47]} 18. a3 {[%emt 0:05:05]} Nb6 {[%emt 1:01:01]} 19. a4 {[%emt 0:05:06]} Nd7 {[%emt 0:00:00]} 20. f4 {[%emt 0:01:49]} Nc5 {[%emt 0:00:00]} 21. Be3 {[%emt 0:02:01]} Nb3 {[%emt 0:00:00]} 22. Ra2 {[%emt 0:01:22]} Bc5 {[%emt 0:00:00]} 23. Bxc5 {[%emt 0:01:04]} Nxc5 {[%emt 0:00:00]} 24. b4 {[%emt 0:00:23]} Nd7 {[%emt 0:00:00]} 25. Ne4 {[%emt 0:00:14]} Kb8 {[%emt 0:00:00]} 26. Nd6 {[%emt 0:04:41]} Nb6 {[%emt 0:00:00]} 27. c4 {[%emt 0:02:28]} c5 {[%emt 0:00:00]} 28. a5 {[%emt 0:04:09]} Nc8 {[%emt 0:00:00]} 29. Nxc8 {[%emt 0:02:53]} Qxc8 {[%emt 0:00:00]} 30. b5 {[%emt 0:02:03]} Qd7 {[%emt 0:00:00]} 31. Rf2 {[%emt 0:01:10]} g6 {[%emt 0:00:00]} 32. hxg6 {[%emt 0:02:54]} fxg6 {[%emt 0:00:00]} 33. a6 {[%emt 0:01:53]} Qd1+ {[%emt 0:00:00]} 34. Qxd1 {[%emt 0:00:28]} Rxd1+ {[%emt 0:00:00]} 35. Kh2 {[%emt 0:00:01]} Rd4 {[%emt 0:00:00]} 36. axb7 {[%emt 0:40:16]} Rd7 {[%emt 0:00:00]} 37. Ra6 {[%emt 0:00:00]} Rxb7 {[%emt 0:00:00]} 38. Rxe6 {[%emt 0:00:00]} Rb6 {[%emt 0:00:00]} 39. Rxb6+ {[%emt 0:00:00]} axb6 {[%emt 0:00:00]} 40. Rd2 {[%emt 0:00:00]} Kc7 {[%emt 0:03:15]} 41. Rd6 {[%emt 0:00:00]} Rf8 {[%emt 0:01:48]} 42. Rc6+ {[%emt 0:00:00]} Kb7 {[%emt 0:00:06]} 43. Rf6 {[%emt 0:00:00]} Rg8 {[%emt 0:01:07]} 44. Rf7+ {[%emt 0:04:00]} Kb8 {[%emt 0:01:50]} 45. Rh7 {[%emt 0:00:00]} h5 {[%emt 0:00:35]} 46. Kg3 {[%emt 0:00:00]} Rd8 {[%emt 0:01:10]} 47. Rg7 {[%emt 0:00:00]} Rd3+ {[%emt 0:01:05]} 48. Kh4 {[%emt 0:00:00]} Rd4 {[%emt 0:00:10]} 49. Kg5 {[%emt 0:00:00]} h4 {[%emt 0:00:18]} 50. e6 {[%emt 0:00:00]} Re4 {[%emt 0:00:19]} 51. e7 {[%emt 0:00:00]} h3 {[%emt 0:00:14]} 52. gxh3 {[%emt 0:00:00]} 1-0

[Event "31st MPL National U18G Chess-ch 2022"]
[Site "Pollachi"]
[Date "2022.04.23"]
[Round "11.1"]
[White "Sindhusree K"]
[Black "Bhagyashree Patil"]
[Result "1/2-1/2"]
[ECO "D55"]
[WhiteElo "1467"]
[BlackElo "1974"]
[Annotator "TA"]
[PlyCount "44"]
[EventDate "2022.04.18"]
[EventCountry "IND"]
[SourceTitle "playchess.com"]
[Source "ChessBase"]
[SourceQuality "1"]
[TimeControl "5400+30"]

{[%evp 23,44,23,18,18,19,0,6,6,6,-14,0,-47,-3,-29,0,-47,0,-25,0,-55,0,-22,0]} 1. d4 {[%emt 0:00:16]} d5 {[%emt 0:00:02]} 2. c4 {[%emt 0:00:07]} e6 {[%emt 0:00:04]} 3. Nc3 {[%emt 0:00:03]} Nf6 {[%emt 0:00:15]} 4. Bg5 {[%emt 0:00:11]} Be7 {[%emt 0:00:04]} 5. e3 {[%emt 0:00:03]} b6 {[%emt 0:00:05]} 6. cxd5 {[%emt 0:00:05]} exd5 {[%emt 0:00:03]} 7. Nf3 {[%emt 0:00:06]} Bb7 {[%emt 0:00:04]} 8. Bd3 {[%emt 0:00:12]} Nbd7 {[%emt 0:00:04]} 9. O-O {[%emt 0:00:06]} O-O {[%emt 1:34:19]} 10. Rc1 {[%emt 0:00:03]} c5 {[%emt 0:00:00]} 11. Qe2 {[%emt 0:01:50]} Ne4 {[%emt 0:00:00]} 12. Bxe7 {[%emt 0:08:00]} Qxe7 {[%emt 0:00:00]} 13. Ba6 {[%emt 0:05:57] D55: Queen's Gambit Declined: 4 Bg5 Be7: Lines without ...h6 and 6...h6 7 Bxf6.} Nxc3 {[%emt 0:00:00] [#]} 14. bxc3 $146 {[%emt 0:00:18]} ({Predecessor:} 14. Rxc3 Nf6 15. Bxb7 Qxb7 16. dxc5 Ne4 17. Rb3 Nxc5 18. Rb4 Rac8 19. Rd1 Rfd8 20. h3 g6 {0-1 (49) Irimia,M (1981)-Clemente Llamero,R (2151) Belgrade 2010}) 14... Bxa6 {[%emt 0:00:00]} 15. Qxa6 {[%emt 0:00:09]} c4 {[%emt 0:00:00]} 16. Qb5 {[%emt 0:01:15]} Qd6 {[%emt 0:00:00]} 17. Kh1 {[%emt 0:01:01]} (17. e4 $11) 17... Kh8 {[%emt 0:00:00]} (17... a6 $5 {[%cal Ra6b5]} 18. Qb2 b5 $15) 18. Kg1 {[%emt 0:00:29]} Kg8 {[%emt 0:00:00]} (18... a6 $5 {[%cal Ra6b5]} 19. Qb2 Rfe8 $11) 19. Kh1 {[%emt 0:00:23]} Kh8 {[%emt 0:00:00]} 20. Kg1 {[%emt 0:00:47]} Kg8 {[%emt 0:00:00]} 21. Kh1 $1 {[%emt 0:01:15]} Kh8 {[%emt 0:00:00]} (21... a6 $5 {[%cal Ra6b5]} 22. Qb2 b5 $15) 22. Kg1 {[%emt 0:00:07]} Kg8 {[%emt 0:00:00] An interesting draw.  Weighted Error Value: White=0.10 (very precise) /Black=0.24 (precise)} 1/2-1/2

[Event "31st MPL National U18G Chess-ch 2022"]
[Site "Pollachi"]
[Date "2022.04.23"]
[Round "11.2"]
[White "Rindhiya V"]
[Black "Yashvi Jain"]
[Result "1-0"]
[ECO "C54"]
[WhiteElo "1949"]
[BlackElo "1310"]
[Annotator "TA"]
[PlyCount "105"]
[EventDate "2022.04.18"]
[EventCountry "IND"]
[SourceTitle "playchess.com"]
[Source "ChessBase"]
[SourceQuality "1"]
[TimeControl "5400+30"]

{[%evp 14,105,24,9,22,4,6,0,10,12,19,0,15,11,9,0,18,7,37,0,47,44,45,45,36,0,133,129,125,143,158,157,168,123,187,142,149,147,227,225,236,220,245,239,242,206,215,189,210,197,474,452,663,662,663,664,626,551,612,604,591,606,635,620,650,645,729,734,766,770,760,760,781,797,839,799,919,814,947,871,1036,988,1218,1189,1602,1201,2076,2035,29990,29991,29993,29991,29991,29992]} 1. e4 {[%emt 0:00:01]} e5 {[%emt 0:00:36]} 2. Nf3 {[%emt 0:00:05]} Nc6 {[%emt 0:00:12]} 3. Bc4 {[%emt 0:00:03]} Bc5 {[%emt 0:00:32]} 4. c3 {[%emt 0:00:04]} Nf6 {[%emt 0:00:08]} 5. d3 {[%emt 0:00:05]} a6 {[%emt 0:00:20]} 6. Bb3 {[%emt 0:00:06]} d6 {[%emt 0:00:04]} 7. Nbd2 {[%emt 0:00:06]} Ba7 {[%emt 0:00:27]} 8. h3 {[%emt 0:00:05]} h6 {[%emt 0:00:16] C54: Giuoco Piano: 4 c3 Nf6, main lines with 5 d4 and 5 d3.} 9. Nf1 {[%emt 0:00:13]} O-O {[%emt 0:00:48]} 10. Ng3 {[%emt 0:00:04]} Re8 {[%emt 0:00:56] The position is equal.} 11. O-O {[%emt 0:00:09]} Be6 {[%emt 0:00:50]} 12. Qe2 {[%emt 0:05:59]} d5 {[%emt 0:04:06]} 13. Rd1 {[%emt 0:00:40]} Qd7 {[%emt 0:04:01]} 14. Be3 {[%emt 0:27:01]} (14. Bc2) 14... d4 {[%emt 0:06:42]} 15. Bd2 {[%emt 0:05:58]} Rad8 {[%emt 0:00:46]} 16. Bc2 {[%emt 0:01:36] [#]} Kh7 $146 {[%emt 0:01:53]} (16... Qd6 $11 {is more appropriate.}) ({Predecessor:} 16... Bc5 17. c4 Bxc4 18. Bxh6 Be6 19. Bg5 Be7 20. Rdc1 Qd6 21. Ba4 Nd7 22. Bxc6 bxc6 23. Bxe7 Rxe7 {1-0 (47) Hillarp Persson,T (2618)-Glimbrant,T (2244) Kungsor 2009}) 17. c4 $14 {[%emt 0:10:23][%cal Bc3c4,Bc4c5][%mdl 32]} Bc5 {[%emt 0:15:19][%cal Oe6c4]} 18. Ba4 {[%emt 0:02:24]} Bd6 {[%emt 0:07:05]} 19. b4 {[%emt 0:04:41] [#] Threatens to win with Bxc6.} (19. Rdc1 b5 20. Bb3 (20. cxb5 Ne7)) 19... Rb8 {[%emt 0:02:12]} (19... b5 20. cxb5 Ne7) (19... b5 $1 $11 20. cxb5 Ne7) 20. Bxc6 $16 {[%emt 0:02:36]} Qxc6 {[%emt 0:06:47]} 21. c5 {[%emt 0:00:24]} Bf8 {[%emt 0:00:13]} 22. Nxe5 {[%emt 0:00:50]} Qa4 {[%emt 0:00:26]} 23. f4 {[%emt 0:01:36]} (23. Nf3) 23... Kg8 {[%emt 0:01:49]} (23... b6) (23... b6 $16 {keeps fighting.}) 24. Nf3 {[%emt 0:04:04]} b6 {[%emt 0:03:48]} 25. cxb6 {[%emt 0:01:59]} (25. Nxd4 bxc5 26. Nxe6 Rxe6) (25. Nxd4 bxc5 26. Nxe6 Rxe6 $16) 25... cxb6 {[%emt 0:01:58]} (25... Rxb6 26. Nxd4 Bxb4 27. Nxe6 Rexe6) (25... Rxb6 $16 {is a better defense.} 26. Nxd4 Bxb4 27. Nxe6 fxe6) 26. a3 $18 {[%emt 0:00:59]} (26. Nxd4 Bxb4 27. Bxb4 Qxb4) ({Resist} 26. Nxd4 $6 Bxb4 27. Bxb4 Qxb4 $16) 26... Rbd8 {[%emt 0:02:25]} 27. Qf2 {[%emt 0:02:46]} Bb3 {[%emt 0:01:32]} 28. Rdc1 {[%emt 0:01:14][%cal Bd1c1,Bc1b1,Bb1a1][%mdl 32]} Qb5 {[%emt 0:06:49]} 29. Ne1 {[%emt 0:03:13]} (29. Nxd4 Qxd3 30. Nxb3 Qxb3) ({Less strong is} 29. Nxd4 Qxd3 30. Nxb3 Qxb3 $14) 29... a5 {[%emt 0:01:57]} 30. Rab1 {[%emt 0:03:43]} Qa4 {[%emt 0:01:55]} (30... a4 31. Rb2 Re7) 31. Nf5 {[%emt 0:03:14]} Qxa3 $2 {[%emt 0:05:42]} (31... Rc8 32. Nxd4 (32. Qxd4 Ba2) 32... Ba2) (31... Rc8 32. Nxd4 (32. Qxd4 Ba2 $18) 32... Rxc1 33. Bxc1 Be6) 32. Ra1 {[%emt 0:01:46]} Qb2 {[%emt 0:02:36]} (32... Ba2 $142 33. Rc2 Qb3 34. Raxa2 axb4) 33. Rcb1 {[%emt 0:00:50]} Qxa1 {[%emt 0:01:59]} 34. Rxa1 {[%emt 0:00:20]} axb4 {[%emt 0:01:41]} 35. Bc1 {[%emt 0:01:39]} g6 {[%emt 0:00:36]} 36. Ng3 {[%emt 0:01:37][%cal Bf5g3,Bg3e2,Be2d4,Bd4b3,Bb3a1,Ba1c2,Bc2e3][%mdl 32]} Ra8 {[%emt 0:01:10]} 37. Qb2 {[%emt 0:04:19] [#] Hoping for Rxa8.} Be6 {[%emt 0:18:24]} 38. Ne2 {[%emt 0:01:05]} Ra5 {[%emt 0:00:00]} 39. Nxd4 {[%emt 0:02:01]} Bc5 {[%emt 0:00:00]} 40. Kh2 {[%emt 0:00:54]} Bd7 {[%emt 0:00:00]} 41. Nb3 {[%emt 0:01:13]} Rxa1 {[%emt 0:00:00]} 42. Nxa1 {[%emt 0:00:52]} Nh5 {[%emt 0:00:00]} 43. Nac2 {[%emt 0:01:21]} f5 {[%emt 0:00:00]} 44. e5 {[%emt 0:02:01]} Rc8 {[%emt 0:00:00]} 45. Bd2 {[%emt 0:01:25]} Bf2 {[%emt 0:00:00]} 46. Qxb4 {[%emt 0:00:39] Qe7 is the strong threat.} Ng3 {[%emt 0:04:30]} 47. Ne3 {[%emt 0:03:43]} Kf7 {[%emt 0:00:00]} 48. d4 {[%emt 0:02:24]} g5 {[%emt 0:00:00]} 49. Nd3 Ne4 {[%emt 0:00:00]} 50. Nxf2 Nxf2 {[%emt 0:00:00]} 51. Qd6 {White mates.} Be8 {[%emt 0:00:00]} 52. Qf6+ Kg8 {[%emt 0:00:00]} 53. Qe6+ {Weighted Error Value: White=0.11 (very precise) /Black=0.33} 1-0

[Event "31st MPL National U18G Chess-ch 2022"]
[Site "Pollachi"]
[Date "2022.04.23"]
[Round "11.3"]
[White "Chinnam Vyshnavi"]
[Black "Udagedara, Sandali Kanishka"]
[Result "1/2-1/2"]
[ECO "B13"]
[WhiteElo "1721"]
[BlackElo "1510"]
[Annotator "NA RC COMBH"]
[PlyCount "92"]
[EventDate "2022.04.18"]
[EventCountry "IND"]
[SourceTitle "playchess.com"]
[Source "ChessBase"]
[SourceQuality "1"]
[TimeControl "5400+30"]

1. e4 {[%emt 0:00:04]} c6 {[%emt 0:00:25]} 2. d4 {[%emt 0:00:30]} d5 {[%emt 0:00:01]} 3. exd5 {[%emt 0:00:31]} cxd5 {[%emt 0:00:06]} 4. Bd3 {[%emt 0:00:54]} Nc6 {[%emt 0:00:09]} 5. c3 {[%emt 0:00:19]} Qc7 {[%emt 0:00:27]} 6. Ne2 {[%emt 0:00:54]} Nf6 {[%emt 0:05:38]} 7. Bf4 {[%emt 0:04:57]} e5 {[%emt 0:03:07]} 8. dxe5 {[%emt 0:02:05]} Nxe5 {[%emt 0:00:02]} 9. Bb5+ {[%emt 0:00:32]} Bd7 {[%emt 0:04:16]} 10. Bxd7+ {[%emt 0:00:42]} Nfxd7 {[%emt 0:01:24]} 11. Qxd5 {[%emt 0:01:52]} Qc5 {[%emt 0:13:41]} 12. Qe4 {[%emt 0:05:14]} O-O-O {[%emt 0:11:42]} 13. O-O {[%emt 0:02:04]} Bd6 {[%emt 0:10:34]} 14. Nd2 {[%emt 0:13:41]} Nf6 {[%emt 0:09:25]} 15. Qc2 {[%emt 0:04:00]} Rhe8 {[%emt 0:02:41]} 16. Nb3 {[%emt 0:06:54]} Qc4 {[%emt 0:01:39]} 17. Nbd4 {[%emt 0:01:08]} a6 {[%emt 0:08:52]} 18. b3 {[%emt 0:04:00]} Qc7 {[%emt 0:00:31]} 19. Bxe5 {[%emt 0:01:25]} Bxe5 {[%emt 0:01:04]} 20. Qf5+ {[%emt 0:03:51]} Kb8 {[%emt 0:00:22]} 21. Qh3 {[%emt 0:00:28]} Ne4 {[%emt 0:02:12]} 22. Rac1 {[%emt 0:01:24]} Qa5 {[%emt 0:04:44]} 23. Qf5 {[%emt 0:18:01]} Qxa2 {[%emt 0:16:08]} 24. Qxf7 {[%emt 0:00:40]} Bxd4 {[%emt 0:01:05]} 25. Nxd4 {[%emt 0:00:34]} Rf8 {[%emt 0:00:54]} 26. Qxg7 {[%emt 0:01:24]} Rde8 {[%emt 0:01:10]} 27. Rc2 {[%emt 0:03:39]} Qa5 {[%emt 0:00:02]} 28. Nf3 {[%emt 0:08:06]} Qf5 {[%emt 0:00:27]} 29. Nd4 {[%emt 0:04:45]} Qd5 {[%emt 0:00:17]} 30. c4 {[%emt 0:00:50]} Qc5 {[%emt 0:00:23]} 31. b4 {[%emt 0:00:02]} Qh5 {[%emt 0:00:43]} 32. f3 {[%emt 0:01:52]} Rg8 {[%emt 0:00:44]} 33. Qd7 {[%emt 0:01:06]} Ng5 {[%emt 0:00:52]} 34. Qd6+ {[%emt 0:01:05]} Ka8 {[%emt 0:00:30]} 35. b5 {[%emt 0:01:59]} Rd8 {[%emt 0:00:21]} 36. Qb6 {[%emt 0:00:36]} Rxd4 {[%emt 0:01:13]} 37. Qxd4 {[%emt 0:01:03]} Nxf3+ {[%emt 0:00:01]} 38. Rxf3 {[%emt 0:00:08]} Qxf3 {[%emt 0:00:02]} 39. bxa6 {[%emt 0:01:23]} bxa6 {[%emt 0:00:07]} 40. Rf2 {[%emt 0:03:47]} Qb7 {[%emt 0:00:03]} 41. Rb2 {[%emt 0:00:24]} Qe7 {[%emt 0:01:15]} 42. Qd5+ Ka7 {[%emt 0:00:30]} 43. Rb7+ Qxb7 {[%emt 0:00:30]} 44. Qxg8 Qb1+ {[%emt 0:00:30]} 45. Kf2 Qf5+ {[%emt 0:00:30]} 46. Kg3 Qe5+ {[%emt 0:00:30]} 1/2-1/2

[Event "31st MPL National U18G Chess-ch 2022"]
[Site "Pollachi"]
[Date "2022.04.23"]
[Round "11.4"]
[White "Vakcheri Mohitha"]
[Black "Keerti Shree Reddy"]
[Result "1/2-1/2"]
[ECO "E52"]
[WhiteElo "1459"]
[BlackElo "1721"]
[Annotator "NA RC COMBH"]
[PlyCount "70"]
[EventDate "2022.04.18"]
[EventCountry "IND"]
[SourceTitle "playchess.com"]
[Source "ChessBase"]
[SourceQuality "1"]
[TimeControl "5400+30"]

1. d4 {[%emt 0:00:02]} Nf6 {[%emt 0:01:31]} 2. c4 {[%emt 0:00:07]} e6 {[%emt 0:00:14]} 3. Nc3 {[%emt 0:00:06]} Bb4 {[%emt 0:00:06]} 4. e3 {[%emt 0:00:05]} O-O {[%emt 0:00:09]} 5. Bd2 {[%emt 0:00:04]} b6 {[%emt 0:00:16]} 6. Nf3 {[%emt 0:00:11]} Bb7 {[%emt 0:00:14]} 7. Bd3 {[%emt 0:00:06]} d5 {[%emt 0:00:15]} 8. cxd5 {[%emt 0:01:16]} exd5 {[%emt 0:00:27]} 9. O-O {[%emt 0:00:08]} Be7 {[%emt 0:00:23]} 10. Ne5 {[%emt 0:00:16]} c5 {[%emt 0:03:12]} 11. Ne2 {[%emt 0:11:07]} Nbd7 {[%emt 0:06:33]} 12. f4 {[%emt 0:08:35]} Ne4 {[%emt 0:12:32]} 13. Ng3 {[%emt 0:02:11]} Nxe5 {[%emt 0:06:53]} 14. fxe5 {[%emt 0:00:24]} Bg5 {[%emt 0:01:05]} 15. Bxe4 {[%emt 0:03:24]} dxe4 {[%emt 0:00:13]} 16. Nf5 {[%emt 0:00:24]} Bc8 {[%emt 0:18:32]} 17. Nd6 {[%emt 0:07:24]} Ba6 {[%emt 0:09:03]} 18. Re1 {[%emt 0:05:58]} g6 {[%emt 0:05:35]} 19. Nxe4 {[%emt 0:05:30]} Bh4 {[%emt 0:02:45]} 20. Bc3 {[%emt 0:01:28]} Bb7 {[%emt 0:08:19]} 21. Nf6+ {[%emt 0:00:18]} Bxf6 {[%emt 0:01:05]} 22. exf6 {[%emt 0:00:05]} Qxf6 {[%emt 0:00:02]} 23. d5 {[%emt 0:00:10]} Qd6 {[%emt 0:00:28]} 24. e4 {[%emt 0:02:11]} f5 {[%emt 0:03:38]} 25. Qd2 {[%emt 0:13:05]} fxe4 {[%emt 0:01:58]} 26. Qh6 {[%emt 0:00:17]} Rf7 {[%emt 0:00:48]} 27. Rxe4 {[%emt 0:02:48]} Qxd5 {[%emt 0:02:01]} 28. Rae1 {[%emt 0:04:39]} Raf8 {[%emt 0:01:31]} 29. Rg4 {[%emt 0:01:11]} Qf5 {[%emt 0:02:19]} 30. h3 {[%emt 0:01:08]} Bc8 {[%emt 0:03:13]} 31. Rg5 {[%emt 0:02:07]} Qf2+ {[%emt 0:02:58]} 32. Kh1 {[%emt 0:00:06]} Bf5 {[%emt 0:01:11]} 33. Re6 {[%emt 0:11:07]} Qf1+ {[%emt 0:01:39]} 34. Kh2 {[%emt 0:00:06]} Qf4+ {[%emt 0:00:58]} 35. Kh1 {[%emt 0:01:13]} Qf1+ {[%emt 0:05:54]} 1/2-1/2

[Event "31st MPL National U18G Chess-ch 2022"]
[Site "Pollachi"]
[Date "2022.04.23"]
[Round "11.5"]
[White "Sachi Jain"]
[Black "Anupam M Sreekumar"]
[Result "1-0"]
[ECO "C54"]
[WhiteElo "1401"]
[BlackElo "1724"]
[Annotator "NA RC COMBH"]
[PlyCount "77"]
[EventDate "2022.04.18"]
[EventCountry "IND"]
[SourceTitle "playchess.com"]
[Source "ChessBase"]
[SourceQuality "1"]
[TimeControl "5400+30"]

1. e4 {[%emt 0:00:17]} e5 {[%emt 0:00:12]} 2. Nf3 {[%emt 0:00:20]} Nc6 {[%emt 0:00:12]} 3. Bc4 {[%emt 0:00:20]} Bc5 {[%emt 0:00:11]} 4. c3 {[%emt 0:00:34]} Nf6 {[%emt 0:00:07]} 5. d3 {[%emt 0:00:07]} d6 {[%emt 0:00:25]} 6. h3 {[%emt 0:00:55]} h6 {[%emt 0:00:06]} 7. Nbd2 {[%emt 0:00:22]} a6 {[%emt 0:00:25]} 8. Bb3 {[%emt 0:00:18]} O-O {[%emt 0:01:02]} 9. O-O {[%emt 0:08:30]} Re8 {[%emt 0:01:18]} 10. Re1 {[%emt 0:00:06]} d5 {[%emt 0:00:51]} 11. Nf1 {[%emt 0:01:41]} Bf8 {[%emt 0:00:51]} 12. Ng3 {[%emt 0:00:36]} Be6 {[%emt 0:01:26]} 13. Bd2 {[%emt 0:01:02]} g6 {[%emt 0:01:29]} 14. exd5 {[%emt 0:02:32]} Bxd5 {[%emt 0:00:44]} 15. Ne4 {[%emt 0:00:11]} Bxb3 {[%emt 0:11:40]} 16. Qxb3 {[%emt 0:03:50]} Rb8 {[%emt 0:02:03]} 17. Rad1 {[%emt 0:01:21]} Bg7 {[%emt 0:03:08]} 18. Be3 {[%emt 0:01:10]} Nd5 {[%emt 0:01:38]} 19. Bxh6 {[%emt 0:07:53]} Na5 {[%emt 0:01:51]} 20. Bg5 {[%emt 0:05:43]} Nxb3 {[%emt 0:05:20]} 21. Bxd8 {[%emt 0:00:20]} Rbxd8 {[%emt 0:00:24]} 22. axb3 {[%emt 0:00:02]} Nf4 {[%emt 0:00:14]} 23. Nc5 {[%emt 0:13:00]} b6 {[%emt 0:01:55]} 24. Nxa6 {[%emt 0:00:36]} Nxd3 {[%emt 0:01:01]} 25. Re2 {[%emt 0:01:24]} c6 {[%emt 0:16:03]} 26. Ne1 {[%emt 0:09:46]} e4 {[%emt 0:03:47]} 27. Nxd3 {[%emt 0:09:00]} exd3 {[%emt 0:00:06]} 28. Rxe8+ {[%emt 0:00:04]} Rxe8 {[%emt 0:00:13]} 29. Nb4 {[%emt 0:00:02]} c5 {[%emt 0:12:02]} 30. Nxd3 {[%emt 0:00:02]} Rd8 {[%emt 0:00:07]} 31. Kf1 {[%emt 0:01:02]} b5 {[%emt 0:01:04]} 32. Ke2 {[%emt 0:00:08]} Bf8 {[%emt 0:00:38]} 33. Nf4 {[%emt 0:02:57]} Ra8 {[%emt 0:02:43]} 34. Kd3 {[%emt 0:00:59]} Re8 {[%emt 0:02:43]} 35. Nd5 {[%emt 0:05:07]} Re5 {[%emt 0:04:28]} 36. c4 {[%emt 0:00:48]} Bg7 {[%emt 0:00:56]} 37. f4 {[%emt 0:00:37]} Re8 {[%emt 0:00:49]} 38. cxb5 {[%emt 0:00:32]} Bxb2 {[%emt 0:00:17]} 39. Rd2 {[%emt 0:00:14]} 1-0